bitfinex/quotes_SOLUSD_20250901
["timestamp","ask_amount","ask_price","bid_price","bid_amount"]
[1756740681252,7.51183508,199.58,199.53,5.81166973]
[1756740682550,0.03,199.58,199.56,6.76183508]
[1756740682757,0.03,199.58,199.54,0.68]
[1756740682758,0.03,199.58,199.57,7.44183508]
[1756740683620,0.03,199.58,199.57,5.69077316]
[1756740683839,0.03,199.58,199.57,12.45260824]
[1756740684456,0.03,199.58,199.57,6.76183508]
[1756740684656,0.03,199.58,199.57,11.18849588]
[1756740684858,0.03,199.58,199.57,37.18849588]
[1756740685032,0.03,199.58,199.57,11.18849588]
[1756740685547,0.03,199.6,199.59,31.01027105]
[1756740685873,0.03,199.6,199.59,41.51876693]
[1756740686170,0.03,199.6,199.59,42.19876693]
[1756740686372,0.03,199.6,199.59,34.75693185]
[1756740686561,0.03,199.6,199.59,3.7466608]
[1756740686867,0.03,199.6,199.59,8.75693185]
[1756740687269,0.03,199.6,199.59,3.7466608]
[1756740688952,7.51183508,199.6,199.59,3.7466608]
[1756740689770,7.51183508,199.6,199.54,5.01143406]
[1756740690082,0.03,199.6,199.54,12.45326914]
[1756740690257,6.79183508,199.6,199.54,12.45326914]
[1756740690572,6.76183508,199.59,199.54,11.77326914]
[1756740690749,7.48183508,199.58,199.54,5.01143406]
[1756740690946,0.03,199.6,199.54,11.77326914]
[1756740691267,0.03,199.6,199.54,12.45326914]
[1756740691453,6.79183508,199.6,199.54,12.45326914]
[1756740691772,6.76183508,199.58,199.54,5.01143406]
[1756740692008,7.48183508,199.58,199.54,5.01143406]
[1756740692205,6.76183508,199.58,199.54,5.01143406]
[1756740693488,0.03,199.6,199.53,0.12]
[1756740693489,7.48183508,199.57,199.53,0.12]
[1756740694105,7.48183508,199.57,199.53,5.13164921]
[1756740695715,6.76183508,199.58,199.53,5.83164921]
[1756740698106,7.44183508,199.58,199.53,12.59348429]
[1756740698287,7.44183508,199.57,199.53,5.13164921]
[1756740698481,6.76183508,199.57,199.53,5.13164921]
[1756740698809,6.76183508,199.54,199.53,0.12]
[1756740699114,6.90399665,199.54,199.53,0.12]
[1756740699279,47.12399665,199.54,199.53,0.12]
[1756740700589,52.13552316,199.54,199.53,0.12]
[1756740701302,65.73111717,199.54,199.53,0.12]
[1756740703498,13.73775558,199.53,199.52,0.12]
[1756740703801,20.49959066,199.53,199.52,0.12]
[1756740704001,21.17959066,199.53,199.52,0.12]
[1756740704417,30.1588982,199.53,199.52,0.12]
[1756740704599,26.19136833,199.53,199.52,0.12]
[1756740704803,30.21284533,199.53,199.51,0.12]
[1756740705303,6.90399665,199.52,199.51,0.12]
[1756740705692,7.58399665,199.52,199.51,0.12]
[1756740706324,47.12399665,199.52,199.51,0.12]
[1756740706940,52.13602551,199.52,199.51,0.12]
[1756740707451,147.51775558,199.5,199.49,0.12]
[1756740707601,154.27959066,199.5,199.49,0.12]
[1756740707801,194.49959066,199.5,199.49,0.12]
[1756740708542,0.14216157,199.49,199.42,0.12]
[1756740708715,7.58399665,199.49,199.42,0.12]
[1756740708916,52.13677924,199.49,199.43,0.7]
[1756740709733,52.13677924,199.49,199.42,0.12]
[1756740710426,12.59677924,199.49,199.42,0.12]
[1756740710640,52.13677924,199.49,199.42,0.82]
[1756740710824,12.59677924,199.49,199.42,0.82]
[1756740711007,52.13677924,199.49,199.42,0.82]
[1756740711202,52.13677924,199.49,199.42,0.12]
[1756740712003,154.01742909,199.47,199.42,0.12]
[1756740712217,193.55742909,199.47,199.42,0.12]
[1756740712415,198.57071429,199.47,199.42,0.12]
[1756740712644,199.25071429,199.47,199.42,0.12]
[1756740712812,185.65512028,199.47,199.42,0.12]
[1756740713510,199.25071429,199.47,199.42,0.12]
[1756740714034,196.72040047,199.47,199.42,0.12]
[1756740714403,157.18040047,199.47,199.42,0.12]
[1756740714606,196.18256204,199.47,199.43,0.7]
[1756740714827,196.18256204,199.47,199.42,0.82]
[1756740715015,196.86256204,199.47,199.42,0.82]
[1756740716309,196.86256204,199.47,199.42,0.12]
[1756740718531,63.20256204,199.47,199.42,0.12]
[1756740719630,39.59559401,199.45,199.42,0.12]
[1756740719811,83.50927684,199.45,199.42,0.12]
[1756740720014,84.18927684,199.45,199.42,0.12]
[1756740720447,0.14216157,199.44,199.42,0.12]
[1756740720651,62.4207981,199.43,199.42,0.12]
[1756740721156,58.18927684,199.43,199.42,0.12]
[1756740721518,63.20356756,199.43,199.42,0.12]
[1756740722557,63.20356756,199.43,199.42,0.12]
[1756740723160,22.98356756,199.43,199.42,0.12]
[1756740723331,62.52356756,199.43,199.42,0.12]
[1756740724340,22.98356756,199.43,199.42,0.12]
[1756740724868,62.52356756,199.43,199.42,0.12]
[1756740725578,22.98356756,199.43,199.42,0.12]
[1756740725738,62.52356756,199.43,199.42,0.78]
[1756740726077,62.52356756,199.43,199.42,0.12]
[1756740726644,26.0,199.4,199.38,0.12]
[1756740726952,191.40927684,199.39,199.38,0.12]
[1756740727159,192.07927684,199.39,199.38,0.12]
[1756740727333,13.73775558,199.38,199.37,0.1]
[1756740727536,17.96927684,199.38,199.37,0.1]
[1756740727758,157.55482503,199.38,199.37,1e-08]
[1756740727962,39.73775558,199.35,199.31,0.66]
[1756740728170,83.48927684,199.35,199.26,4.35152126]
[1756740728349,30.37368283,199.35,199.26,4.35152126]
[1756740728672,43.89368283,199.35,199.34,0.78]
[1756740728851,4.37368283,199.35,199.34,0.78]
[1756740729046,43.89368283,199.35,199.34,0.78]
[1756740729254,43.89368283,199.35,199.34,0.12]
[1756740729457,69.89368283,199.35,199.34,0.12]
[1756740729666,83.48927684,199.35,199.34,0.12]
[1756740729861,88.50557982,199.35,199.34,0.12]
[1756740730575,26.14216157,199.33,199.32,0.66]
[1756740730876,26.14216157,199.3,199.29,0.66]
[1756740731075,0.14216157,199.29,199.26,0.12]
[1756740731254,4.23152126,199.27,199.26,0.12]
[1756740731577,4.37368283,199.27,199.26,0.12]
[1756740731779,35.39199968,199.27,199.26,0.12]
[1756740731998,70.68047842,199.27,199.26,0.12]
[1756740732197,74.91199968,199.27,199.26,0.12]
[1756740732404,26.0,199.25,199.24,0.66]
[1756740732601,69.89368283,199.25,199.24,0.66]
[1756740732888,4.23152126,199.26,199.24,0.66]
[1756740733208,39.54,199.25,199.16,13.59559401]
[1756740733410,39.54,199.25,199.19,4.23152126]
[1756740733695,39.52,199.25,199.16,13.59559401]
[1756740733982,48.79031207,199.26,199.21,4.23152126]
[1756740734172,48.79031207,199.26,199.2,0.66]
[1756740734173,48.79031207,199.26,199.22,0.66]
[1756740734376,5.01879081,199.26,199.22,0.66]
[1756740734678,4.23152126,199.27,199.22,4.89152126]
[1756740734885,26.0,199.28,199.23,4.89152126]
[1756740734886,44.53811071,199.28,199.23,4.89152126]
[1756740735082,44.53811071,199.28,199.24,4.89152126]
[1756740735292,44.53811071,199.28,199.25,0.66]
[1756740735595,9.24963197,199.28,199.25,0.66]
[1756740736270,5.01811071,199.28,199.25,0.66]
[1756740736460,4.23152126,199.27,199.26,0.66]
[1756740736665,4.23152126,199.27,199.22,4.23152126]
[1756740737076,4.23152126,199.27,199.2,26.0]
[1756740737276,133.9,199.27,199.23,0.66]
[1756740737499,138.13152126,199.27,199.23,0.66]
[1756740737706,133.9,199.27,199.23,0.66]
[1756740737879,5.0185687,199.26,199.24,0.66]
[1756740738210,9.25008996,199.26,199.25,0.66]
[1756740738714,133.9,199.25,199.22,0.66]
[1756740738878,4.23152126,199.23,199.22,0.66]
[1756740739298,39.54,199.24,199.22,0.66]
[1756740739704,4.23152126,199.23,199.18,4.23152126]
[1756740739874,5.01957634,199.22,199.15,31.02131468]
[1756740740078,5.01957634,199.22,199.2,4.23152126]
[1756740740478,5.01957634,199.22,199.21,0.66]
[1756740741080,5.01932439,199.23,199.21,0.66]
[1756740741481,5.01932439,199.23,199.22,0.66]
[1756740742703,5.01932439,199.23,199.2,0.66]
[1756740742895,5.01932439,199.23,199.19,4.23152126]
[1756740743081,5.01932439,199.23,199.2,0.66]
[1756740743290,43.75152126,199.22,199.17,0.66]
[1756740743511,138.13152126,199.21,199.18,0.66]
[1756740743684,138.13152126,199.21,199.09,13.59559401]
[1756740743685,43.75152126,199.2,199.16,0.66]
[1756740744093,4.23152126,199.21,199.17,0.66]
[1756740744399,5.02033234,199.19,199.18,0.66]
[1756740746113,5.02033234,199.19,199.16,0.66]
[1756740746619,39.52,199.18,199.14,0.66]
[1756740746801,39.52,199.18,199.15,0.66]
[1756740747002,39.52,199.18,199.07,13.59559401]
[1756740747216,39.52,199.18,199.13,4.23152126]
[1756740747398,39.52,199.18,199.14,0.66]
[1756740747603,39.52,199.18,199.08,5.02296645]
[1756740747604,5.02083647,199.17,199.15,0.66]
[1756740748019,5.02083647,199.17,199.13,0.66]
[1756740748234,9.25235773,199.17,199.14,0.66]
[1756740748415,4.23152126,199.15,199.08,0.66]
[1756740748618,4.23152126,199.12,199.08,0.66]
[1756740749417,26.0,199.08,199.02,15.756239]
[1756740749605,5.02361097,199.06,199.03,0.66]
[1756740749919,5.02361097,199.06,199.04,0.66]
[1756740750226,5.02361097,199.06,199.01,0.76]
[1756740750427,9.25513223,199.06,199.01,4.33152126]
[1756740750599,48.79513223,199.06,199.01,4.99152126]
[1756740750799,44.56361097,199.06,199.02,0.66]
[1756740751013,12.55763427,199.09,199.02,0.66]
[1756740751014,5.02337439,199.07,199.04,4.23152126]
[1756740751217,5.02337439,199.07,199.02,4.23152126]
[1756740751418,9.25489565,199.07,199.03,0.66]
[1756740752100,5.02337439,199.07,199.03,0.66]
[1756740752307,4.90152126,199.06,199.01,0.66]
[1756740752521,43.77152126,199.06,199.01,0.66]
[1756740752721,0.67,199.05,198.98,0.66]
[1756740752905,4.23152126,199.04,198.99,4.23152126]
[1756740753104,17.58177093,199.07,199.0,4.89152126]
[1756740753309,39.54,199.06,199.01,4.89152126]
[1756740753516,39.54,199.06,199.02,0.66]
[1756740753517,43.77152126,199.06,199.02,0.66]
[1756740753826,17.58177093,199.07,198.94,26.0]
[1756740753827,5.02386335,199.05,199.0,0.66]
[1756740754132,12.55839654,199.07,199.01,0.66]
[1756740754133,5.02356886,199.07,199.01,0.66]
[1756740754310,9.25509012,199.07,199.02,4.23152126]
[1756740754504,44.56356886,199.07,199.04,4.23152126]
[1756740754807,44.56356886,199.07,199.04,4.89152126]
[1756740755013,44.56356886,199.07,199.01,0.7]
[1756740755219,5.02356886,199.07,199.04,4.23152126]
[1756740755431,5.02356886,199.07,199.05,0.7]
[1756740756122,5.02356886,199.07,199.04,4.23152126]
[1756740756500,5.02356886,199.07,199.02,0.7]
[1756740756709,5.74356886,199.07,199.02,4.23152126]
[1756740756911,5.02356886,199.07,199.03,0.7]
[1756740757116,44.56356886,199.07,199.04,4.93152126]
[1756740757408,5.74356886,199.07,199.02,4.23152126]
[1756740757608,12.5567196,199.1,199.06,4.23152126]
[1756740757609,5.0226017,199.1,199.06,4.23152126]
[1756740757837,5.0226017,199.1,199.0,4.23152126]
[1756740757838,44.5626017,199.1,199.05,4.23152126]
[1756740758033,44.5626017,199.1,199.05,4.93152126]
[1756740758436,45.2826017,199.1,199.06,4.23152126]
[1756740758609,45.2826017,199.1,199.05,0.7]
[1756740758929,45.2826017,199.1,199.02,0.7]
[1756740758930,4.95152126,199.09,199.02,0.7]
[1756740759134,4.23152126,199.06,198.98,0.7]
[1756740759313,39.56,199.05,199.01,4.23152126]
[1756740759512,40.28,199.05,199.01,4.23152126]
[1756740760337,0.72,199.04,199.0,4.23152126]
[1756740760936,5.02436818,199.03,199.0,4.23152126]
[1756740761547,5.02436818,199.03,199.01,4.23152126]
[1756740761730,5.02436818,199.03,199.0,4.23152126]
[1756740762038,5.02436818,199.03,199.01,4.23152126]
[1756740762443,5.02436818,199.03,198.9,4.23152126]
[1756740762444,9.25588944,199.03,198.9,4.23152126]
[1756740762630,4.23152126,199.01,198.96,4.23152126]
[1756740762831,5.02512562,199.0,198.97,0.7]
[1756740763027,5.02512562,199.0,198.97,4.93152126]
[1756740763263,5.02512562,199.0,198.97,4.23152126]
[1756740763545,5.02512562,199.0,198.96,4.23152126]
[1756740763723,0.72,198.99,198.96,4.23152126]
[1756740764044,5.02512562,199.0,198.97,4.23152126]
[1756740764243,5.02512562,199.0,198.96,4.23152126]
[1756740764420,39.56,198.99,198.96,4.23152126]
[1756740764620,44.58512562,199.0,198.97,0.7]
[1756740764841,44.58512562,199.0,198.97,4.23152126]
[1756740765144,49.53664688,199.0,198.91,26.0]
[1756740765348,49.53664688,199.0,198.88,15.106881]
[1756740765349,30.37368283,198.99,198.94,4.23152126]
[1756740765518,4.23152126,198.98,198.92,0.7]
[1756740765719,39.56,198.97,198.92,0.7]
[1756740765932,39.56,198.97,198.93,4.23152126]
[1756740766136,40.28,198.97,198.92,0.7]
[1756740766442,0.72,198.96,198.92,4.23152126]
[1756740766945,5.02638853,198.95,198.92,4.23152126]
[1756740768036,5.02638853,198.95,198.93,4.23152126]
[1756740768341,5.02638853,198.95,198.92,4.23152126]
[1756740769140,5.74638853,198.95,198.9,0.7]
[1756740769350,5.74638853,198.95,198.92,4.35152126]
[1756740769525,5.02638853,198.95,198.92,0.82]
[1756740769725,5.02638853,198.95,198.92,4.35152126]
[1756740770848,5.74638853,198.95,198.92,0.12]
[1756740771029,5.02689388,198.93,198.92,0.12]
[1756740771529,10.12057671,198.93,198.92,0.12]
[1756740771837,49.70057671,198.93,198.92,0.12]
[1756740772035,10.12057671,198.93,198.92,0.12]
[1756740772252,48.98057671,198.93,198.92,0.12]
[1756740772633,49.70057671,198.93,198.92,0.12]
[1756740772832,44.74905545,198.93,198.92,0.12]
[1756740773030,44.60689388,198.93,198.92,0.12]
[1756740773253,49.70057671,198.93,198.92,0.12]
[1756740773456,45.46905545,198.93,198.92,0.12]
[1756740773634,48.98057671,198.93,198.92,0.12]
[1756740773835,49.70057671,198.93,198.92,0.12]
[1756740774661,9.40057671,198.93,198.92,0.12]
[1756740774834,49.70057671,198.93,198.92,0.12]
[1756740775370,44.74905545,198.93,198.92,0.12]
[1756740775530,48.98057671,198.93,198.92,0.12]
[1756740775732,49.70057671,198.93,198.92,0.12]
[1756740776658,71.46905545,198.93,198.92,0.12]
[1756740776860,75.70057671,198.93,198.92,0.12]
[1756740777043,5.16956089,198.91,198.9,0.12]
[1756740777244,48.98108215,198.91,198.9,0.12]
[1756740777451,49.70108215,198.91,198.9,0.12]
[1756740778937,70.60739932,198.91,198.9,0.12]
[1756740780132,5.02739932,198.91,198.9,0.12]
[1756740780540,44.60739932,198.91,198.9,0.82]
[1756740780955,44.60739932,198.91,198.9,0.12]
[1756740782578,9.25765716,198.96,198.9,0.82]
[1756740782777,4.23152126,198.93,198.9,0.12]
[1756740782956,43.81152126,198.92,198.9,0.12]
[1756740783282,17.59147566,198.96,198.91,0.7]
[1756740783452,39.58,198.95,198.92,0.7]
[1756740783654,39.58,198.95,198.9,4.35152126]
[1756740783655,43.81152126,198.95,198.9,4.35152126]
[1756740783976,4.23152126,198.93,198.9,0.12]
[1756740784274,39.58,198.92,198.9,0.12]
[1756740785152,4.95152126,198.94,198.91,0.67]
[1756740785153,5.02664119,198.94,198.91,0.67]
[1756740785359,39.58,198.93,198.91,0.67]
[1756740785771,39.58,198.93,198.9,0.12]
[1756740785975,39.58,198.93,198.91,0.67]
[1756740787067,5.02664119,198.94,198.91,0.67]
[1756740787390,0.03,198.93,198.92,4.90152126]
[1756740787754,0.03,198.93,198.92,4.23152126]
[1756740787985,0.03,198.93,198.92,0.67]
[1756740788163,5.74690189,198.93,198.9,0.12]
[1756740788483,39.58,198.92,198.9,0.12]
[1756740788848,39.58,198.92,198.9,0.79]
[1756740789054,0.03,198.93,198.9,0.12]
[1756740789286,39.58,198.92,198.9,0.79]
[1756740789461,39.58,198.92,198.9,0.12]
[1756740791387,5.02739932,198.91,198.9,0.12]
[1756740791590,9.94892058,198.91,198.9,0.12]
[1756740792490,5.02739932,198.91,198.9,0.12]
[1756740792672,5.05696116,198.93,198.9,0.12]
[1756740792871,39.58,198.92,198.9,0.12]
[1756740793196,9.25892058,198.91,198.9,0.12]
[1756740793567,9.94892058,198.91,198.9,0.12]
[1756740794692,10.09108215,198.91,198.88,0.12]
[1756740794895,26.14216157,198.87,198.86,0.12]
[1756740795081,70.03368283,198.87,198.86,0.12]
[1756740795268,36.09209334,198.87,198.86,0.12]
[1756740795470,0.14216157,198.87,198.86,0.12]
[1756740795670,49.10209334,198.87,198.86,0.12]
[1756740796292,45.56057208,198.87,198.86,0.12]
[1756740796619,49.79209334,198.87,198.86,0.12]
[1756740796919,2.045367,198.93,198.86,0.79]
[1756740797072,4.23152126,198.9,198.86,0.79]
[1756740797274,4.23152126,198.9,198.75,0.67]
[1756740797275,26.0,198.86,198.75,0.67]
[1756740797469,4.23152126,198.8,198.75,0.67]
[1756740797672,39.8,198.79,198.75,0.67]
[1756740797882,39.8,198.79,198.74,4.23152126]
[1756740798084,39.8,198.79,198.74,0.67]
[1756740798304,4.23152126,198.78,198.74,0.67]
[1756740798706,39.8,198.79,198.77,88.59930793]
[1756740798907,39.82,198.8,198.78,0.67]
[1756740799277,39.82,198.8,198.79,0.67]
[1756740799489,4.23152126,198.83,198.79,5.70039061]
[1756740799696,15.121349,198.85,198.8,0.67]
[1756740799893,39.82,198.83,198.8,0.67]
[1756740800114,4.23152126,198.84,198.81,0.67]
[1756740800319,39.82,198.83,198.81,0.67]
[1756740800607,15.119824,198.87,198.82,0.67]
[1756740800775,15.119824,198.87,198.83,4.23152126]
[1756740800970,44.07152126,198.88,198.84,0.67]
[1756740801175,4.23152126,198.85,198.8,0.67]
[1756740801376,4.23152126,198.82,198.77,97.8615203]
[1756740801616,4.23152126,198.82,198.77,87.92930793]
[1756740801617,4.23152126,198.8,198.77,87.92930793]
[1756740801782,4.23152126,198.8,198.77,88.59930793]
[1756740802105,4.23152126,198.79,198.77,87.92930793]
[1756740802493,39.84,198.81,198.77,87.92930793]
[1756740802690,39.84,198.81,198.78,0.67]
[1756740803080,44.07152126,198.81,198.77,92.96021268]
[1756740803276,4.23152126,198.79,198.77,87.92930793]
[1756740803502,44.07152126,198.79,198.77,87.92930793]
[1756740803811,39.84,198.79,198.77,87.92930793]
[1756740803999,44.07152126,198.79,198.77,87.92930793]
[1756740804185,39.84,198.79,198.77,87.92930793]
[1756740804387,4.37368283,198.78,198.77,87.92930793]
[1756740804691,39.84,198.79,198.77,87.92930793]
[1756740805101,4.23152126,198.78,198.77,87.92930793]
[1756740805687,39.84,198.79,198.77,87.92930793]
[1756740806209,4.23152126,198.78,198.77,87.92930793]
[1756740806388,44.23152126,198.78,198.77,87.92930793]
[1756740806908,44.37368283,198.78,198.77,87.92930793]
[1756740807082,44.37368283,198.78,198.77,88.04930793]
[1756740807583,40.0,198.78,198.77,88.04930793]
[1756740807777,15.124398,198.81,198.77,88.04930793]
[1756740807983,0.83216157,198.82,198.77,88.04930793]
[1756740807984,39.98,198.8,198.77,88.04930793]
[1756740808219,4.23152126,198.8,198.77,88.04930793]
[1756740808516,0.69,198.82,198.77,88.04930793]
[1756740808692,0.69,198.86,198.78,0.67]
[1756740808883,0.69,198.88,198.8,4.23152126]
[1756740809087,4.23152126,198.85,198.81,0.67]
[1756740809286,15.119824,198.88,198.82,5.69955823]
[1756740809486,4.23152126,198.87,198.82,5.69955823]
[1756740809696,40.0,198.86,198.83,0.67]
[1756740809896,26.03,198.9,198.82,5.02955823]
[1756740809897,0.03,198.9,198.84,0.67]
[1756740810097,4.23152126,198.87,198.84,0.67]
[1756740810304,39.98,198.86,198.85,0.67]
[1756740810992,15.148301,198.9,198.85,0.67]
[1756740811320,4.23152126,198.87,198.82,4.23152126]
[1756740811503,4.23152126,198.87,198.83,0.67]
[1756740811700,44.19152126,198.87,198.84,0.67]
[1756740812339,39.96,198.87,198.84,0.67]
[1756740812810,44.19152126,198.87,198.82,4.23152126]
[1756740813128,39.96,198.87,198.83,4.90152126]
[1756740813424,5.059558,198.9,198.84,4.90152126]
[1756740813628,39.94,198.89,198.85,4.90152126]
[1756740813841,0.03,198.9,198.86,4.90152126]
[1756740814140,0.03,198.9,198.89,4.23152126]
[1756740814507,0.03,198.9,198.89,5.69790487]
[1756740814704,0.03,198.9,198.89,9.92942613]
[1756740815213,0.03,198.9,198.86,12.57125098]
[1756740815214,0.03,198.9,198.87,9.25973326]
[1756740815415,0.03,198.9,198.88,4.23152126]
[1756740815626,0.03,198.9,198.89,4.23152126]
[1756740815833,0.03,198.9,198.89,0.67]
[1756740816407,0.03,198.9,198.89,5.69790487]
[1756740816604,0.03,198.9,198.89,9.92942613]
[1756740819444,0.03,198.95,198.92,26.0]
[1756740819612,0.03,198.95,198.94,4.23152126]
[1756740820025,0.03,198.95,198.94,4.90152126]
[1756740820717,0.03,198.95,198.92,26.67]
[1756740820920,0.03,198.95,198.94,4.23152126]
[1756740821317,0.03,198.95,198.94,9.92816245]
[1756740822440,133.9,199.02,198.97,26.0]
[1756740822734,133.9,199.02,198.98,0.67]
[1756740822937,133.9,199.02,199.01,4.23152126]
[1756740823127,39.94,199.06,199.01,4.90152126]
[1756740823318,39.94,199.06,199.03,4.23152126]
[1756740823520,0.03,199.07,199.05,4.23152126]
[1756740823839,0.03,199.07,199.06,4.23152126]
[1756740824219,0.03,199.07,199.06,4.90152126]
[1756740825218,0.03,199.07,199.06,9.92513223]
[1756740826019,0.03,199.07,199.06,12.48225439]
[1756740826839,0.03,199.07,199.03,26.0]
[1756740826840,0.03,199.07,199.03,5.02436818]
[1756740827039,0.03,199.07,199.04,6.78864342]
[1756740827545,0.71,199.06,199.03,5.02436818]
[1756740827719,0.03,199.06,199.03,11.8130116]
[1756740827926,0.03,199.06,199.05,6.78864342]
[1756740828422,0.03,199.06,199.05,7.45864342]
[1756740828833,0.03,199.06,199.05,47.45864342]
[1756740829321,0.03,199.06,199.05,52.48250677]
[1756740830024,0.03,199.06,199.05,12.48250677]
[1756740830432,0.03,199.06,199.05,52.46250677]
[1756740830629,0.03,199.06,199.05,12.48250677]
[1756740830939,0.03,199.06,199.05,52.46250677]
[1756740831136,0.03,199.07,199.05,52.46250677]
[1756740831323,0.03,199.07,199.06,33.45864342]
[1756740831526,0.03,199.07,199.06,6.78864342]
[1756740831852,0.03,199.07,199.05,5.02386335]
[1756740832042,0.03,199.07,199.06,6.78864342]
[1756740832240,0.03,199.07,199.05,5.02386335]
[1756740832419,0.74,199.07,199.05,11.81250677]
[1756740832623,0.03,199.07,199.05,11.81250677]
[1756740833245,0.03,199.07,199.04,6.78864342]
[1756740833836,0.03,199.07,199.05,6.78864342]
[1756740834243,0.03,199.07,199.06,6.78864342]
[1756740834751,0.03,199.07,199.06,11.81225439]
[1756740835331,0.03,199.07,199.06,12.48225439]
[1756740838856,0.03,199.07,199.06,5.69361097]
[1756740839057,0.03,199.07,199.06,12.48225439]
[1756740840361,0.03,199.09,199.08,26.0]
[1756740840542,0.03,199.09,199.08,79.45728684]
[1756740840749,0.03,199.09,199.08,80.12728684]
[1756740840959,0.03,199.09,199.08,85.15039312]
[1756740841267,0.03,199.11,199.08,85.15039312]
[1756740841466,133.9,199.2,199.1,6.78864342]
[1756740841636,0.71,199.19,199.11,39.88]
[1756740841965,0.71,199.18,199.14,6.78864342]
[1756740842131,0.71,199.17,199.15,6.78864342]
[1756740842338,0.71,199.16,199.15,6.78864342]
[1756740842542,0.71,199.18,199.1,0.67]
[1756740842743,133.9,199.2,199.17,6.78864342]
[1756740842968,0.71,199.19,199.17,11.80944803]
[1756740843269,0.71,199.22,199.18,6.78864342]
[1756740843563,0.71,199.22,199.21,6.78864342]
[1756740843934,0.71,199.22,199.2,6.78864342]
[1756740844342,40.61,199.25,199.21,6.78864342]
[1756740844539,0.71,199.24,199.21,6.78864342]
[1756740844756,0.91,199.27,199.23,6.78864342]
[1756740845064,0.86,199.27,199.24,6.78864342]
[1756740845268,0.86,199.27,199.23,5.01913061]
[1756740845269,0.2,199.27,199.26,6.78864342]
[1756740845437,0.2,199.27,199.21,5.01964669]
[1756740845765,0.86,199.27,199.24,6.78864342]
[1756740846343,0.86,199.27,199.21,5.01964669]
[1756740846344,0.2,199.27,199.25,6.78864342]
[1756740846964,0.2,199.27,199.26,6.78864342]
[1756740848847,0.2,199.27,199.22,5.71957634]
[1756740848848,0.2,199.27,199.22,5.01957634]
[1756740849071,0.2,199.27,199.18,38.55119465]
[1756740849241,6.78864342,199.23,199.14,0.7]
[1756740849440,0.66,199.22,199.14,0.7]
[1756740849646,0.66,199.22,199.19,6.78864342]
[1756740849849,0.2,199.27,199.21,6.78864342]
[1756740850052,0.2,199.27,199.25,6.78864342]
[1756740850740,0.2,199.27,199.26,6.78864342]
[1756740851080,0.2,199.27,199.26,12.50721212]
[1756740851381,0.2,199.27,199.26,6.78864342]
[1756740853172,0.2,199.27,199.26,11.80721212]
[1756740853586,0.2,199.27,199.23,0.7]
[1756740853897,0.2,199.27,199.26,6.78864342]
[1756740854254,0.2,199.27,199.26,7.48864342]
[1756740854455,66.76,199.36,199.26,7.48864342]
[1756740854655,6.78864342,199.35,199.29,6.78864342]
[1756740854960,0.14216157,199.34,199.3,6.78864342]
[1756740855163,0.14216157,199.34,199.29,6.78864342]
[1756740855484,6.78864342,199.32,199.23,40.74]
[1756740855792,5.01657712,199.34,199.23,40.74]
[1756740855793,6.78864342,199.31,199.25,6.78864342]
[1756740856082,6.78864342,199.3,199.25,6.78864342]
[1756740856286,6.78864342,199.3,199.24,6.78864342]
[1756740856465,20.526399,199.29,199.19,5.02009491]
[1756740856652,6.78864342,199.26,199.21,6.78864342]
[1756740857073,6.78864342,199.27,199.21,7.48864342]
[1756740857292,5.01840919,199.27,199.22,6.78864342]
[1756740857614,11.80705261,199.27,199.22,6.78864342]
[1756740858319,11.80705261,199.27,199.21,5.01977894]
[1756740858477,11.80705261,199.27,199.21,6.78864342]
[1756740859014,11.80705261,199.27,199.19,5.02011918]
[1756740859015,6.78864342,199.25,199.2,6.78864342]
[1756740859387,0.14216157,199.27,199.2,6.78864342]